[Event "ChessKid Cup Div-III 2023"]
[Site "Online"]
[Date "2023.05.22"]
[Round "1.2"]
[White "Paravyan, David"]
[Black "Gledura, Benjamin"]
[Result "1-0"]
[ECO "C83"]
[WhiteElo "2601"]
[BlackElo "2644"]
[Annotator "TA"]
[PlyCount "65"]
[EventDate "2023.05.21"]
[EventType "k.o."]
[EventCountry "NET"]
[SourceTitle "playchess.com"]
[Source "ChessBase"]
[SourceQuality "1"]
[TimeControl "900+3"]

{[%evp 17,65,22,19,6,20,0,30,20,27,37,20,19,24,37,69,28,35,24,8,-39,-34,-114,-106,-120,35,31,27,28,47,0,41,24,343,323,328,343,625,412,566,547,563,556,560,500,570,570,582,581,579,558]} 1. e4 {[%emt 0:00:04]} e5 {[%emt 0:00:06]} 2. Nf3 {[%emt 0:00:01]} Nc6 {[%emt 0:00:05]} 3. Bb5 {[%emt 0:00:00][%cal Bf1b5,Bb5a4,Ba4b3,Bb3c2][%mdl 32]} a6 {[%emt 0:00:02]} 4. Ba4 {[%emt 0:00:02]} Nf6 {[%emt 0:00:01]} 5. O-O {[%emt 0:00:00]} Nxe4 {[%emt 0:00:03]} 6. d4 {[%emt 0:00:02]} b5 {[%emt 0:00:01]} 7. Bb3 {[%emt 0:00:00]} d5 {[%emt 0:00:02]} 8. dxe5 {[%emt 0:00:01]} Be6 {[%emt 0:00:03]} 9. c3 {[%emt 0:00:17]} Be7 {[%emt 0:00:04] seems to push 9...Bc5 aside.} 10. h3 {[%emt 0:00:10] C83: Open Ruy Lopez: 9 c3 Be7.} O-O {[%emt 0:00:27]} 11. Bc2 {[%emt 0:00:01]} f6 {[%emt 0:00:43]} 12. exf6 {[%emt 0:00:33] White has an edge.} Bxf6 {[%emt 0:00:03]} 13. Nbd2 {[%emt 0:01:26] [#]} Nc5 $146 {[%emt 0:00:38]} ({Predecessor:} 13... Bf5 14. Nb3 Qd6 15. Nbd4 Bg6 16. Ne2 Ne5 17. Nf4 Rad8 18. Nd4 Rde8 19. Nxg6 Nxg6 {1-0 Hunt,A (2288)-Sepman,Y (2225) GER-ch U20 int 1999 (9)}) 14. Nb3 {[%emt 0:00:08]} Nxb3 {[%emt 0:00:03]} 15. axb3 {[%emt 0:00:10]} Kh8 {[%emt 0:00:49]} 16. Qd3 {[%emt 0:00:57][%csl Gc2][%cal Rd3h7]} Bg8 {[%emt 0:00:03]} 17. Bf4 {[%emt 0:00:15]} d4 {[%emt 0:01:05][%cal Bd5d4,Bd4c3][%mdl 32]} 18. Rad1 {[%emt 0:02:05]} (18. Qe4 $11 {should be considered.} Qd5 19. Bg5 (19. Bxc7 dxc3 20. bxc3 Bxc3 $11)) 18... dxc3 $1 $15 {[%emt 0:01:01] And now ...Qxd3 would win.} 19. Qf5 {[%emt 0:03:20] [#]} ({White should try} 19. Qe3 $15 Qe7 20. bxc3) 19... Qe8 $1 $17 {[%emt 0:01:45][%cal Of6e5] White must now prevent ...Be5!} 20. Rfe1 {[%emt 0:01:33] [#] Repels Be5} (20. Bxc7 $2 Be5 21. Qd7 Bxc7 22. Qxc7 Rc8 $19) 20... Qg6 {[%emt 0:00:38]} ({Black should play} 20... Ne7 $1 $17 {[%cal Re7f5]} 21. Qg4 cxb2) 21. Qxg6 $14 {[%emt 0:00:41]} hxg6 {[%emt 0:00:00]} 22. bxc3 {[%emt 0:01:12] Threatens to win with Be4.} (22. Be4 Bxb3 23. Bxc6 Bxd1 24. Rxd1 (24. Bxa8 Bc2 $17) 24... cxb2 $15) 22... Bxc3 {[%emt 0:00:18]} 23. Re4 {[%emt 0:01:23]} (23. Re3 $14 Bb2 24. Nh4 (24. Bxc7 Rac8 $16)) 23... Nb4 {[%emt 0:01:38]} 24. Bd2 {[%emt 0:01:09][%cal Bf4d2,Bd2c3,Bc3b2][%mdl 32]} Nxc2 $4 {[%emt 0:00:55][%mdl 8192] Loses the game.} (24... Bxd2 $11 25. Rxd2 Nxc2 26. Rh4+ Bh7 27. Rxc2 Rf5) 25. Rh4+ $18 {[%emt 0:00:13]} ({Not} 25. Bxc3 Bxb3 26. Rd7 Rf7 27. Rxf7 Bxf7 $14) 25... Bh7 {[%emt 0:00:08]} 26. Bxc3 {[%emt 0:00:02] White wants to mate with Rd7.} b4 $2 {[%emt 0:00:49] Black is weak on the dark squares} (26... Rxf3 27. gxf3 c5) 27. Bb2 {[%emt 0:00:14] White threatens Rd7 and mate.} ({Less strong is} 27. Bxb4 Nxb4 28. Rxb4 c5 $16) 27... Rad8 {[%emt 0:00:23] Against Rd7} 28. Rxd8 {[%emt 0:00:08] White is clearly winning.} Rxd8 {[%emt 0:00:01]} 29. Ng5 {[%emt 0:00:04]} Kg8 {[%emt 0:00:07]} 30. Rxh7 {[%emt 0:00:02]} ({Weaker is} 30. Nxh7 Rd1+ 31. Kh2 Rd5 $18) 30... Rd1+ {[%emt 0:00:05]} 31. Kh2 {[%emt 0:00:02]} Nd4 {[%emt 0:00:01]} 32. Rh4 {[%emt 0:00:06] Inhibits Ne6.} c5 {[%emt 0:00:05]} 33. Re4 {[%emt 0:00:02] Weighted Error Value: White=0.27 (precise) /Black=0.58} 1-0

[Event "ChessKid Cup Div-III 2023"]
[Site "Online"]
[Date "2023.05.22"]
[Round "1.2"]
[White "Santos Ruiz, Miguel"]
[Black "Lysyj, Igor"]
[Result "0-1"]
[ECO "C50"]
[WhiteElo "2590"]
[BlackElo "2606"]
[Annotator "TA"]
[PlyCount "84"]
[EventDate "2023.05.21"]
[EventType "k.o."]
[EventCountry "NET"]
[SourceTitle "playchess.com"]
[Source "ChessBase"]
[SourceQuality "1"]
[TimeControl "900+3"]

{[%evp 9,84,15,26,0,0,0,0,0,2,0,8,0,0,-16,-11,-19,-8,-30,-18,-10,-20,-22,0,0,26,0,7,0,0,-6,0,-25,14,0,0,-43,29,-16,-19,-31,0,0,-3,-177,-179,-179,-150,-220,-188,-221,-185,-188,-206,-465,-433,-540,-538,-567,-583,-575,-572,-488,-206,-224,-220,-197,-240,-235,-229,-296,-295,-759,-743,-12813,-6772,-5257,-2243]} 1. e4 {[%emt 0:00:03] Esipenko,Andrey} e5 {[%emt 0:00:04]} 2. Nf3 {[%emt 0:00:01]} Nc6 {[%emt 0:00:01]} 3. Bc4 {[%emt 0:00:01]} Bc5 {[%emt 0:00:02]} 4. d3 {[%emt 0:00:01]} Nf6 {[%emt 0:00:03]} 5. a4 {[%emt 0:00:01]} a6 {[%emt 0:00:11] [#]} 6. Be3 $146 {[%emt 0:00:02] C50: Hungarian Defence and Giuoco Pianissimo.} ({Predecessor:} 6. O-O d6 7. a5 Ba7 8. c3 O-O 9. h3 h6 10. Be3 Re8 11. Qb3 Qe7 12. Nbd2 Rb8 13. Bxa7 Nxa7 {½-½ Esipenko,A (2714)-Nakamura,H (2736) Berlin FIDE GP 1 Pool-A 2022 (6)}) 6... Bxe3 {[%emt 0:00:07]} 7. fxe3 {[%emt 0:00:01]} d6 {[%emt 0:00:03]} 8. O-O {[%emt 0:00:01] The position is equal.} O-O {[%emt 0:00:06]} 9. h3 {[%emt 0:00:01]} Ne7 {[%emt 0:00:24]} 10. Nbd2 {[%emt 0:00:28]} Ng6 {[%emt 0:00:10]} 11. c3 {[%emt 0:00:11]} c6 {[%emt 0:00:04]} 12. d4 {[%emt 0:00:10]} a5 {[%emt 0:00:22]} 13. Bb3 {[%emt 0:00:13]} Qe7 {[%emt 0:00:04]} 14. Qe1 {[%emt 0:00:13]} Be6 {[%emt 0:00:23]} 15. Bc2 {[%emt 0:00:06]} Rae8 {[%emt 0:00:43]} 16. Qg3 {[%emt 0:00:05]} Nh5 {[%emt 0:00:40]} 17. Qh2 {[%emt 0:00:03]} (17. Qg5 {seems wilder.} Nf6 18. dxe5 dxe5 19. Nxe5 Qc7 20. Nxg6 fxg6 21. e5) 17... Bc8 {[%emt 0:00:15]} 18. Rf2 {[%emt 0:01:36]} Nf6 {[%emt 0:00:27]} 19. Raf1 {[%emt 0:00:34]} b5 {[%emt 0:00:07]} 20. g4 {[%emt 0:01:27]} Ba6 {[%emt 0:00:44]} 21. Bd3 {[%emt 0:00:45]} Qb7 {[%emt 0:00:18]} 22. axb5 {[%emt 0:00:29]} cxb5 {[%emt 0:00:11]} (22... Bxb5 $15 23. c4 Ba6) 23. Qg3 {[%emt 0:00:17]} (23. g5 $5 {[%cal Rg5f6]} exd4 24. cxd4 (24. gxf6 dxe3 25. Rg2 exd2 $11) (24. Nxd4 Nd7 $14) 24... Nxe4 25. Nxe4 (25. Bxe4 Rxe4 26. Nxe4 Qxe4 $16) 25... Rxe4 26. Bxe4 Qxe4 27. Qxd6 $16) 23... b4 {[%emt 0:00:38]} 24. c4 {[%emt 0:00:24]} exd4 {[%emt 0:00:53]} 25. exd4 {[%emt 0:00:03]} (25. Qxd6 $2 {too greedy.} dxe3 26. Bc2 exf2+ $19) 25... Qb6 {[%emt 0:00:12]} 26. g5 $2 {[%emt 0:00:38] [#] White does not recover from this.} (26. b3 $11 {and White stays safe.}) 26... Nh5 $1 $19 {[%emt 0:00:04]} 27. Qh2 {[%emt 0:00:11]} Ngf4 {[%emt 0:00:19]} 28. c5 {[%emt 0:00:32]} (28. Bc2 $17) 28... dxc5 {[%emt 0:00:12]} 29. dxc5 {[%emt 0:00:01]} Qe6 {[%emt 0:00:48]} 30. Bxa6 {[%emt 0:00:08]} Qxa6 {[%emt 0:00:02]} 31. Nd4 $2 {[%emt 0:00:08]} (31. Nh4 {was necessary.} Nd3 32. Rf3) 31... Qd3 $1 {[%emt 0:00:09][%csl LRd4,LRh3]} 32. Nf5 {[%emt 0:00:44]} Nxh3+ {[%emt 0:00:33]} 33. Kg2 {[%emt 0:00:00]} Nxf2 {[%emt 0:00:40]} 34. Rxf2 {[%emt 0:00:01]} g6 {[%emt 0:00:45]} 35. Nh6+ {[%emt 0:00:03]} Kh8 {[%emt 0:00:42]} (35... Kg7 $142 36. Qc7 Qd8 37. Rxf7+ Rxf7 38. Qxf7+ Kh8) 36. Qc7 {[%emt 0:00:23]} Qe3 {[%emt 0:00:51]} 37. Nxf7+ {[%emt 0:00:27] [#]} Rxf7 $1 {[%emt 0:00:03][%mdl 512]} 38. Qxf7 {[%emt 0:00:00]} Qxg5+ {[%emt 0:00:02]} 39. Kf1 {[%emt 0:00:13]} Rd8 {[%emt 0:00:13] Hoping for ...Ng3+.} 40. c6 $2 {[%emt 0:00:08]} (40. e5 Qxe5 41. c6) 40... Ng3+ {[%emt 0:00:40] Black is clearly winning.} (40... Rxd2 $2 41. Qf8#) 41. Ke1 {[%emt 0:00:02]} Qe3+ {[%emt 0:00:06]} 42. Kd1 {[%emt 0:00:01]} Nxe4 {[%emt 0:00:01] An entertaining game by Lysyj.   Weighted Error Value: White=0.62/Black=0.26 (precise)} 0-1

[Event "ChessKid Cup Div-III 2023"]
[Site "Online"]
[Date "2023.05.22"]
[Round "1.2"]
[White "Antipov, Mikhail Al."]
[Black "Bluebaum, Matthias"]
[Result "1-0"]
[ECO "C01"]
[WhiteElo "2588"]
[BlackElo "2669"]
[Annotator "TA"]
[PlyCount "129"]
[EventDate "2023.05.21"]
[EventType "k.o."]
[EventCountry "NET"]
[SourceTitle "playchess.com"]
[Source "ChessBase"]
[SourceQuality "1"]
[TimeControl "900+3"]

{[%evp 19,128,8,14,0,0,0,0,0,9,0,0,-10,-12,-18,-17,-20,-26,-25,-18,-20,-16,-18,-20,-14,-25,-28,-22,-16,-6,0,2,-3,40,-36,-36,-39,0,0,94,94,105,110,107,115,102,112,108,113,114,109,289,288,289,267,282,279,5631,5414,1806,1658,8302,8792,2977,2977,1810,1645,2116,2456,29969,29969,29968,29968,29969,29955,29978,29978,29981,29982,29981,29983,29983,29984,29984,29985,29986,29987,29987,29987,29989,29988,29988,29989,29991,29992,29992,29992,29993,29994,29994,29995,29995,29996,29997,29997,29997,29997,29997,29998,29998,29999,29999]} 1. e4 {[%emt 0:00:14]} e6 {[%emt 0:00:04]} 2. d4 {[%emt 0:00:01]} d5 {[%emt 0:00:01]} 3. exd5 {[%emt 0:00:16]} exd5 {[%emt 0:00:00]} 4. Nf3 {[%emt 0:00:01]} Nc6 {[%emt 0:00:01]} 5. c3 {[%emt 0:00:10]} Bd6 {[%emt 0:00:02]} 6. Bd3 {[%emt 0:00:05]} Nge7 {[%emt 0:00:01]} 7. O-O {[%emt 0:00:31]} Bg4 {[%emt 0:00:01]} 8. Nbd2 {[%emt 0:00:21]} Qd7 {[%emt 0:00:01]} 9. Re1 {[%emt 0:00:06]} f6 {[%emt 0:00:02]} 10. b4 {[%emt 0:00:10]} O-O {[%emt 0:00:03]} 11. Qc2 {[%emt 0:00:29] C01: French: Exchange Variation.} Bf5 {[%emt 0:00:14]} 12. Nb3 {[%emt 0:01:06]} Bxd3 {[%emt 0:00:15]} 13. Qxd3 {[%emt 0:00:00] The position is equal.} b6 {[%emt 0:00:00]} 14. b5 {[%emt 0:00:26]} Nd8 {[%emt 0:00:04] [#]} 15. c4 $146 {[%emt 0:00:00]} ({Predecessor:} 15. a4 Ng6 16. Ba3 Nf4 17. Qf1 Bxa3 18. Rxa3 Qg4 19. Nc1 Nf7 20. Nd3 Nh3+ 21. Kh1 {0-1 Lafer,D (1700)-Gutmann,A (2048) Leitersdorf Region-ch 2014 (1)}) 15... dxc4 {[%emt 0:00:13]} 16. Qxc4+ {[%emt 0:00:03]} Nf7 {[%emt 0:00:00]} 17. a4 {[%emt 0:00:37][%cal Ba2a4,Ba4a5][%mdl 32]} Rac8 {[%emt 0:00:08]} 18. a5 {[%emt 0:00:49]} c6 {[%emt 0:01:08]} 19. bxc6 {[%emt 0:00:51]} Rxc6 {[%emt 0:00:02]} (19... Qxc6 {simplifies} 20. Qxc6 Rxc6 21. axb6 axb6 22. Bd2 Rd8) 20. Qb5 {[%emt 0:00:37]} Rd8 {[%emt 0:00:24][%cal Oc6c1] Threatens to win with ...Rxc1!} 21. Bd2 {[%emt 0:00:07] [#]} Nd5 $1 {[%emt 0:00:48]} 22. axb6 {[%emt 0:00:07] [#]} axb6 {[%emt 0:00:02]} 23. Ra7 {[%emt 0:00:21][%mdl 64] Deflection} Bc7 {[%emt 0:00:38]} 24. g3 {[%emt 0:01:05]} g5 {[%emt 0:00:34]} 25. Kg2 {[%emt 0:00:15]} Qd6 {[%emt 0:00:52]} 26. Bc1 {[%emt 0:00:33]} ({Better is} 26. Ra6 $14) 26... Nc3 $15 {[%emt 0:00:18]} 27. Qf5 {[%emt 0:00:11][%cal Od4d5]} Nh6 {[%emt 0:00:40]} 28. Qd3 {[%emt 0:00:02][%cal Od4d5]} Qd5 {[%emt 0:00:05]} (28... Nd5 $11 {keeps the balance.}) 29. Re7 $1 $16 {[%emt 0:00:05][%csl LRc7,LRh7] Really sharp!} Nf5 {[%emt 0:01:08]} 30. Rexc7 {[%emt 0:00:04]} Rxc7 {[%emt 0:00:01]} 31. Rxc7 {[%emt 0:00:00]} Nb5 {[%emt 0:00:00] [#]} 32. Rb7 {[%emt 0:01:36][%cal Bc7b7,Bb7b6,Bb6f6,Bf6f5][%mdl 544]} g4 {[%emt 0:00:11][%mdl 64] Pin} (32... Qxb7 33. Qxf5) 33. Rxb6 {[%emt 0:00:04]} Nbxd4 {[%emt 0:00:14][%mdl 64] [#] Pin} 34. Nbd2 {[%emt 0:02:02][%cal Od2e4] Ne4! is the strong threat.} ({Stronger than} 34. Rxf6 gxf3+ 35. Kh3 Nxb3 $17) ({Resist} 34. Nbxd4 Nxd4 35. h3 f5 $14) 34... Re8 {[%emt 0:04:41] Prevents Ne4. Loses the game.} (34... gxf3+ $16 35. Nxf3 Kf7) 35. Rxf6 $18 {[%emt 0:00:16]} Re5 {[%emt 0:00:50]} 36. Bb2 {[%emt 0:01:17][%cal Rb2d4]} gxf3+ {[%emt 0:02:33]} 37. Nxf3 {[%emt 0:00:02]} Re3 $2 {[%emt 0:00:01]} (37... Nxf3 38. Qxf3 Qxf3+ 39. Kxf3 Rb5) 38. Rxf5 {[%emt 0:00:06][%mdl 64] Threatening mate with Rg5+. Pin} ({And not} 38. fxe3 Qxf3+ 39. Kh3 Qh5+ 40. Kg2 Qf3+ 41. Kh3 Qh5+ 42. Kg2 Qf3+ $11) 38... Rxd3 {[%emt 0:00:08]} 39. Rxd5 {[%emt 0:00:01]} Nxf3 {[%emt 0:00:00]} 40. Rxd3 {[%emt 0:00:00]} Ne1+ {[%emt 0:00:00]} 41. Kf1 {[%emt 0:00:01]} Nxd3 {[%emt 0:00:01][%mdl 4096] Endgame KB-KN} 42. Bd4 {[%emt 0:00:01] Hoping for f4.} Kf7 {[%emt 0:00:01]} 43. Ke2 {[%emt 0:00:01]} Nb4 {[%emt 0:00:00]} 44. Ke3 {[%emt 0:00:03] White mates.} Nc6 {[%emt 0:00:00]} 45. Ke4 {[%emt 0:00:01]} Ke6 {[%emt 0:00:00]} 46. f4 {[%emt 0:00:00]} h5 {[%emt 0:00:01]} 47. h3 {[%emt 0:00:02]} Ne7 {[%emt 0:00:01]} 48. g4 {[%emt 0:00:01]} hxg4 {[%emt 0:00:01]} 49. hxg4 {[%emt 0:00:00]} Nc6 {[%emt 0:00:00]} 50. f5+ {[%emt 0:00:00]} Kf7 {[%emt 0:00:01]} 51. g5 {[%emt 0:00:01]} Ne7 {[%emt 0:00:01]} 52. Bc5 {[%emt 0:00:02]} Nc6 {[%emt 0:00:04]} 53. Kd5 {[%emt 0:00:02]} Na5 {[%emt 0:00:03]} 54. Bd4 {[%emt 0:00:01]} Nb7 {[%emt 0:00:01]} 55. g6+ {[%emt 0:00:00]} Ke7 {[%emt 0:00:01]} 56. f6+ {[%emt 0:00:02]} Ke8 {[%emt 0:00:01]} 57. f7+ {[%emt 0:00:02]} Ke7 {[%emt 0:00:01]} 58. Bg7 {[%emt 0:00:01]} Nd8 {[%emt 0:00:04]} 59. f8=Q+ {[%emt 0:00:00]} Kd7 {[%emt 0:00:01]} 60. Be5 {[%emt 0:00:02]} Kc8 {[%emt 0:00:09]} 61. g7 {[%emt 0:00:07]} Kb7 {[%emt 0:00:04]} 62. g8=Q {[%emt 0:00:01]} Nc6 {[%emt 0:00:06]} 63. Qa8+ {[%emt 0:00:05]} Kb6 {[%emt 0:00:01]} 64. Qxc6+ {[%emt 0:00:00]} Ka5 {[%emt 0:00:03]} 65. Bc3# {[%emt 0:00:01] Beautiful play by Antipov!   Weighted Error Value: White=0.06 (flawless) /Black=0.32} 1-0

[Event "ChessKid Cup Div-III 2023"]
[Site "Online"]
[Date "2023.05.22"]
[Round "1.2"]
[White "Narayanan, Srinath"]
[Black "Bernadskiy, Vitaliy"]
[Result "0-1"]
[ECO "D02"]
[WhiteElo "2559"]
[BlackElo "2592"]
[Annotator "TA"]
[PlyCount "70"]
[EventDate "2023.05.21"]
[EventType "k.o."]
[EventCountry "NET"]
[SourceTitle "playchess.com"]
[Source "ChessBase"]
[SourceQuality "1"]
[TimeControl "900+3"]

{[%evp 9,70,-6,27,27,56,57,107,73,60,46,50,46,45,-39,-45,-169,-141,-200,-196,-362,-354,-362,-375,-372,-366,-404,-350,-354,-350,-343,-335,-425,-437,-461,-475,-471,-465,-606,-610,-594,-596,-589,-597,-602,-590,-527,-483,-618,-549,-717,-720,-785,-808,-774,-771,-884,-877,-996,-968,-5025,-4937,-2720,-1525]} 1. Nf3 {[%emt 0:00:16]} d5 {[%emt 0:00:05]} 2. d4 {[%emt 0:00:03]} Nf6 {[%emt 0:00:02]} 3. Bf4 {[%emt 0:00:02]} c5 {[%emt 0:00:20]} 4. e3 {[%emt 0:00:02]} Nc6 {[%emt 0:00:01]} 5. Nbd2 {[%emt 0:00:01]} Bf5 {[%emt 0:00:14]} 6. Bb5 {[%emt 0:00:07] D02: 1 d4 d5 2 Nf3 sidelines, including 2...Nf6 3 g3 and 2...Nf6 3 Bf4.} Qb6 {[%emt 0:00:09]} 7. c4 {[%emt 0:00:12]} dxc4 {[%emt 0:00:08] [#]} (7... e6 $14) 8. Qa4 $146 {[%emt 0:00:06] d5 is the strong threat. White is better.} ({Predecessor:} 8. a4 Bd3 9. Ne5 a6 10. Ndxc4 Bxc4 11. Nxc4 Qd8 12. Bxc6+ bxc6 13. dxc5 Qd5 14. Qxd5 Nxd5 {1-0 Ushenina,A (2416)-Gevorgyan,M (2228) Speed Chess (Women) Q1 blitz 2020 (4)}) 8... a6 {[%emt 0:00:27]} 9. Bxc6+ {[%emt 0:00:08]} (9. Bxc4 Qxb2 10. Ne5 e6 $15) 9... bxc6 {[%emt 0:00:22]} 10. Nxc4 {[%emt 0:01:51]} (10. Qxc4 {looks sharper.} Ne4 11. Nxe4 Bxe4 12. dxc5 Qxb2 13. O-O) 10... Qb5 {[%emt 0:00:03] Black is weak on the dark squares} 11. Qxb5 {[%emt 0:00:26]} (11. Qb3 $14) 11... axb5 $15 {[%emt 0:00:02]} 12. Nb6 {[%emt 0:00:02] This move loses the game for White.} (12. Ncd2 $15) 12... Ra6 $36 {[%emt 0:00:07][%mdl 2048] Black is really pushing.} 13. dxc5 {[%emt 0:00:03]} (13. Bc7 $17 {might work better.} e6 14. a4) 13... e5 $1 {[%emt 0:00:18][%mdl 64] [#] Discovered Attack} 14. Nh4 $2 {[%emt 0:00:12]} (14. Nxe5 Bxc5 15. O-O) 14... Be6 {[%emt 0:00:25]} (14... Bxc5 $2 15. Nxf5 exf4 16. Nxg7+ Kd8 17. g3 $19) 15. Bxe5 {[%emt 0:00:40]} Bxc5 {[%emt 0:00:02]} 16. O-O {[%emt 0:00:08]} (16. Bxf6 gxf6 $19) 16... Bxb6 {[%emt 0:00:16]} (16... Rxb6 $2 17. Nf3 $19) 17. Rfc1 {[%emt 0:00:02]} Bd8 {[%emt 0:00:06]} (17... Rxa2 $2 18. Rxa2 Bxa2 19. Bxf6 gxf6 20. Rxc6 $19) 18. Nf3 {[%emt 0:00:03]} Bd5 {[%emt 0:00:11]} (18... Bxa2 $2 {too greedy.} 19. Nd4 $19) 19. Nd4 {[%emt 0:00:02]} O-O {[%emt 0:00:04]} (19... Rxa2 $2 20. Rxa2 Bxa2 21. Rxc6 $19) 20. f3 {[%emt 0:00:02]} Re8 {[%emt 0:00:03] Black is clearly winning.} (20... Bxa2 $2 21. Rxc6 Rxc6 22. Nxc6 $19) 21. Bf4 {[%emt 0:00:03]} Nh5 {[%emt 0:00:03] Strongly threatening ...Nxf4.} (21... Bxa2 $2 {is the wrong capture.} 22. Rxc6 Rxc6 23. Nxc6 $19) 22. Bd6 {[%emt 0:00:04]} Rxe3 {[%emt 0:00:07]} (22... Rxa2 $2 {perishes.} 23. Rxa2 Bxa2 24. Rxc6 $19) 23. Re1 {[%emt 0:00:00] [#]} Bb6 $1 {[%emt 0:00:09]} 24. Rxe3 {[%emt 0:00:09][%cal Re3e8]} Bxd4 {[%emt 0:00:01] A strong pair of Bishops.} 25. Rae1 {[%emt 0:00:00]} Rxa2 {[%emt 0:00:11]} 26. Be5 {[%emt 0:00:05]} Bxe3+ {[%emt 0:00:04]} 27. Rxe3 {[%emt 0:00:00]} h6 {[%emt 0:00:07]} 28. Bc3 {[%emt 0:00:04]} Be6 {[%emt 0:00:04]} 29. Rd3 {[%emt 0:00:05]} Nf4 {[%emt 0:00:03]} 30. Rd2 {[%emt 0:00:02]} c5 {[%emt 0:00:09][%cal Bc6c5,Bc5c4][%mdl 32]} 31. Be5 {[%emt 0:00:01]} Nd5 {[%emt 0:00:05]} 32. g4 {[%emt 0:00:02]} c4 {[%emt 0:00:03]} 33. Rg2 {[%emt 0:00:01]} f6 {[%emt 0:00:03]} 34. Bd6 {[%emt 0:00:01]} b4 {[%emt 0:00:03]} 35. Re2 {[%emt 0:00:02]} Kf7 {[%emt 0:00:02] Weighted Error Value: White=0.47/Black=0.11 (very precise)} 0-1

[Event "ChessKid Cup Div-III 2023"]
[Site "Online"]
[Date "2023.05.22"]
[Round "1.2"]
[White "Tang, Andrew"]
[Black "Keymer, Vincent"]
[Result "0-1"]
[ECO "A46"]
[WhiteElo "2523"]
[BlackElo "2700"]
[Annotator "TA"]
[PlyCount "88"]
[EventDate "2023.05.21"]
[EventType "k.o."]
[EventCountry "NET"]
[SourceTitle "playchess.com"]
[Source "ChessBase"]
[SourceQuality "1"]
[TimeControl "900+3"]

{[%evp 9,87,1,12,0,13,-47,32,33,32,25,50,48,47,48,51,51,44,54,47,43,56,61,51,17,18,0,25,19,55,18,22,10,48,54,36,-11,103,-44,-38,-64,-51,-58,0,0,0,0,0,0,0,0,2,-58,-59,-69,-54,-106,-106,-97,-91,-103,0,-94,-130,-198,-106,-122,0,0,0,-1086,-629,-1287,-1234,-1139,-1036,-973,-559,-29996,-29997,-29999]} 1. d4 {[%emt 0:00:03]} Nf6 {[%emt 0:00:05]} 2. Nf3 {[%emt 0:00:08]} e6 {[%emt 0:00:02]} 3. Bf4 {[%emt 0:00:02]} c5 {[%emt 0:00:00]} 4. e3 {[%emt 0:00:02]} Nc6 {[%emt 0:00:01]} 5. Nbd2 {[%emt 0:00:09]} h6 {[%emt 0:00:02]} 6. h3 {[%emt 0:00:02] A46: 1 d4 Nf6 2 Nf3 e6: Torre, London and Colle Systems.} d5 {[%emt 0:00:01] [#]} 7. a3 $146 {[%emt 0:01:18]} (7. Bb5 $11) ({Predecessor:} 7. Bb5 Qb6 8. c4 dxc4 9. a4 cxd4 10. O-O Bd7 11. Nxc4 Qd8 12. Nxd4 Nd5 13. Bg3 {1-0 Le,Q (2728)-Predke,A (2684) Airthings Masters Play In rapid 2023 (4)}) 7... cxd4 {[%emt 0:01:36]} (7... Qb6 $1 $15) 8. exd4 $14 {[%emt 0:00:02] White is slightly better.} Qb6 {[%emt 0:00:01]} 9. Nb3 {[%emt 0:01:45]} Bd7 {[%emt 0:00:47]} 10. c3 {[%emt 0:03:14]} Be7 {[%emt 0:02:20]} 11. Bd3 {[%emt 0:00:20]} O-O {[%emt 0:00:55]} 12. O-O {[%emt 0:00:03]} Ne4 {[%emt 0:01:07]} 13. a4 {[%emt 0:01:33]} a5 {[%emt 0:02:03]} 14. Bxe4 {[%emt 0:02:14]} dxe4 {[%emt 0:00:02]} 15. Nfd2 {[%emt 0:00:01]} f5 {[%emt 0:01:35]} 16. f3 {[%emt 0:00:07]} (16. Nc4 $5 {[%cal Rc4b6]} Qa6 17. Nbd2 $14) 16... exf3 {[%emt 0:01:01]} 17. Qxf3 {[%emt 0:00:35]} Kh7 {[%emt 0:00:44]} 18. Rfe1 {[%emt 0:01:27]} Rae8 {[%emt 0:00:30]} 19. Kh1 {[%emt 0:00:16]} Nd8 {[%emt 0:01:27]} 20. Qg3 {[%emt 0:00:15]} Nf7 {[%emt 0:00:24]} 21. Bc7 {[%emt 0:00:18]} Qa6 {[%emt 0:00:21]} 22. Nxa5 {[%emt 0:00:07] [#]} (22. Bxa5 $14 Bd6 23. Qf2) 22... e5 $1 {[%emt 0:00:04]} 23. Nab3 {[%emt 0:01:34]} ({Better is} 23. Ndc4 $16) (23. Bxe5 Nxe5) 23... e4 $15 {[%emt 0:00:14][%mdl 1024] Black has compensation.} 24. Nc5 {[%emt 0:00:25]} Qc6 {[%emt 0:00:13]} (24... Bxc5 {simplifies} 25. dxc5 g5 26. b4 Qc6) 25. b4 {[%emt 0:00:02][%cal Bb2b4,Bb4b5][%mdl 32]} Bc8 {[%emt 0:00:05]} (25... Bxc5 $15 26. b5 Qd5 27. dxc5 Qxc5) 26. b5 $11 {[%emt 0:00:02]} Qd5 {[%emt 0:00:02]} 27. Nf1 {[%emt 0:00:07] Ne3 is the strong threat.} Bxc5 {[%emt 0:00:23]} 28. Ne3 {[%emt 0:00:01][%mdl 64] Deflection} Qe6 {[%emt 0:00:03] Strongly threatening ...Bd6.} 29. dxc5 {[%emt 0:00:01]} g5 {[%emt 0:00:00] Black is weak on the dark squares} 30. Qf2 {[%emt 0:00:04]} (30. Rf1 $11 f4 31. Bxf4 gxf4 32. Rxf4) 30... f4 $15 {[%emt 0:00:03]} 31. Ng4 {[%emt 0:00:02][%cal Oe1e4] And now Rxe4! would win.} Qg6 {[%emt 0:00:12]} ({Don't take} 31... h5 32. Rxe4 Qf5 33. Rxe8 Rxe8 34. Nh2 $16) 32. Qd4 {[%emt 0:00:02]} (32. a5 $15) 32... Bxg4 $17 {[%emt 0:00:08]} 33. hxg4 {[%emt 0:00:01]} h5 {[%emt 0:00:03]} 34. gxh5 {[%emt 0:00:04]} Qxh5+ {[%emt 0:00:01]} 35. Kg1 {[%emt 0:00:00]} e3 {[%emt 0:00:08] Threatens to win with ...Rh8.} 36. Qd3+ {[%emt 0:00:05]} (36. Qd1 $17 {is a better defense.} Qh4 37. Re2) 36... Kg7 $19 {[%emt 0:00:02] aiming for ...Rh8.} 37. Qd4+ {[%emt 0:00:02]} Kg6 {[%emt 0:00:03]} ({Black should try} 37... Kg8 $17 {...Re6 would be deadly.} 38. Qd5 Qh4) 38. Qd3+ $11 {[%emt 0:00:01]} Kg7 {[%emt 0:00:01] White must now prevent ...Rh8. Some like it hot} 39. Qe2 $2 {[%emt 0:00:01][%mdl 8192]} (39. Qd4+ $11 Kg6 40. Qd3+ Kg7) 39... Qh6 {[%emt 0:00:03] ( -> ...Rh8)} 40. Qg4 {[%emt 0:00:04]} Rh8 {[%emt 0:00:02][%csl Gh8][%cal Rh6h1]} 41. Kf1 {[%emt 0:00:01]} Qg6 {[%emt 0:00:04]} 42. Kg1 {[%emt 0:00:06] Prevents Rh1+} Qh7 {[%emt 0:00:00][%csl Gh8][%cal Rh7h1]} 43. Kf1 {[%emt 0:00:05]} Qc2 {[%emt 0:00:03][%cal Rh8h1]} 44. Kg1 {[%emt 0:00:13]} Qf2# {[%emt 0:00:02] Artfully played by Keymer.   Weighted Error Value: White=0.55/Black=0.52} 0-1